bitfinex-derivatives/quotes_SOLF0:USTF0_20250110
["timestamp","ask_amount","ask_price","bid_price","bid_amount"]
[1736489462373,2.6292,190.2,190.13,9.59615984]
[1736489462573,9.59615984,190.23,190.1,9.59615984]
[1736489462768,3.2038,190.22,190.1,9.59615984]
[1736489463177,3.2038,190.22,190.13,9.59615984]
[1736489465078,5.8327,190.22,190.16,2.6296]
[1736489465281,9.59615984,190.26,190.13,9.59615984]
[1736489465779,2.6287,190.23,190.17,2.6295]
[1736489466180,2.6287,190.23,190.13,9.59615984]
[1736489466380,2.6287,190.23,190.18,2.6294]
[1736489466777,141.78634482,190.4,190.19,14.27615984]
[1736489467077,2.628,190.29,190.19,14.27615984]
[1736489468083,2.628,190.29,190.23,2.6287]
[1736489468578,2.6277,190.31,190.22,9.59615984]
[1736489468784,3.1219,190.34,190.22,9.59615984]
[1736489468981,3.1219,190.34,190.25,9.59615984]
[1736489469179,1.6386,190.34,190.26,4.72]
[1736489469377,12.63205984,190.39,190.26,4.72]
[1736489469580,14.19375984,190.39,190.26,4.72]
[1736489471186,2.627,190.36,190.26,4.72]
[1736489471586,2.627,190.36,190.29,2.6279]
[1736489472185,2.627,190.36,190.3,2.6277]
[1736489473876,2.6272,190.34,190.29,2.6279]
[1736489474881,4.5976,190.39,190.31,9.59615984]
[1736489475086,9.59615984,190.45,190.31,9.59615984]
[1736489475382,2.6264,190.41,190.36,2.6269]
[1736489475890,9.59615984,190.45,190.34,14.37615984]
[1736489476189,2.6261,190.43,190.37,2.6268]
[1736489477287,2.6258,190.45,190.34,14.37615984]
[1736489477689,2.6258,190.45,190.4,2.6264]
[1736489479486,2.6259,190.44,190.39,2.6265]
[1736489483494,9.59615984,190.48,190.34,14.37615984]
[1736489483687,2.626,190.43,190.34,14.37615984]
[1736489484091,9.59615984,190.48,190.34,14.37615984]
[1736489484683,9.59615984,190.48,190.35,4.76]
[1736489484891,2.6258,190.44,190.39,2.6265]
[1736489485493,2.626,190.43,190.37,2.6267]
[1736489487391,2.6263,190.41,190.35,2.627]
[1736489487587,2.6263,190.41,190.32,9.59615984]
[1736489488692,2.6264,190.4,190.35,2.627]
[1736489489097,9.59615984,190.38,190.26,9.59615984]
[1736489489794,2.6271,190.35,190.3,2.6277]
[1736489489993,9.59615984,190.38,190.26,9.59615984]
[1736489490192,1.646,190.37,190.26,9.59615984]
[1736489490397,2.6274,190.33,190.27,2.6282]
[1736489490795,1.646,190.37,190.25,4.74]
[1736489490995,1.646,190.37,190.26,2.6283]
[1736489491896,2.6275,190.33,190.26,2.6283]
[1736489492101,1.646,190.37,190.26,2.6283]
[1736489492498,9.59615984,190.35,190.26,2.6283]
[1736489492801,9.59615984,190.32,190.21,4.76]
[1736489493902,2.6279,190.29,190.24,2.6286]
[1736489494900,2.6281,190.28,190.2,9.59615984]
[1736489496198,2.6282,190.27,190.22,2.6289]
[1736489497000,9.59615984,190.29,190.17,9.59615984]
[1736489497204,2.6284,190.26,190.17,9.59615984]
[1736489497902,2.6284,190.26,190.2,2.6291]
[1736489498102,1.6229,190.28,190.17,9.59615984]
[1736489498103,2.6286,190.25,190.17,9.59615984]
[1736489498306,2.6286,190.25,190.19,2.6293]
[1736489501505,1.6229,190.28,190.17,9.59615984]
[1736489501506,2.6283,190.27,190.2,2.629]
[1736489501703,2.6283,190.27,190.17,9.59615984]
[1736489503009,2.6283,190.27,190.2,2.6292]
[1736489503813,2.6283,190.27,190.21,2.629]
[1736489504014,2.6283,190.27,190.17,9.59615984]
[1736489504218,3.0477,190.31,190.2,9.59615984]
[1736489504809,2.6279,190.29,190.2,9.59615984]
[1736489505215,3.0477,190.31,190.2,9.59615984]
[1736489505521,2.6281,190.28,190.23,2.6286]
[1736489505820,2.6283,190.27,190.21,2.629]
[1736489506020,9.59615984,190.29,190.17,9.59615984]
[1736489506321,2.6286,190.25,190.19,2.6292]
[1736489507027,9.59615984,190.29,190.19,2.6292]
[1736489507718,2.6286,190.25,190.19,2.6292]
[1736489508321,9.59615984,190.29,190.17,9.59615984]
[1736489508526,2.6281,190.28,190.23,2.6286]
[1736489508718,9.59615984,190.29,190.23,2.6286]
[1736489509315,2.6282,190.27,190.22,2.6289]
[1736489509925,2.6285,190.25,190.2,2.6291]
[1736489514522,2.6289,190.22,190.17,2.6295]
[1736489514827,9.59615984,190.23,190.12,4.72]
[1736489515629,2.6292,190.2,190.15,2.6297]
[1736489516325,9.59615984,190.23,190.12,4.72]
[1736489516626,2.629,190.21,190.16,2.6297]
[1736489519922,2.6292,190.2,190.16,2.6297]
[1736489520428,9.59615984,190.23,190.14,2.6299]
[1736489520627,1.513,190.22,190.14,2.6299]
[1736489520922,9.59615984,190.2,190.08,5.28070793]
[1736489521222,9.59615984,190.2,190.06,9.59615984]
[1736489521428,9.59615984,190.2,190.12,2.6302]
[1736489522123,9.59615984,190.17,190.06,14.29615984]
[1736489522723,2.6302,190.13,190.08,2.6307]
[1736489523133,2.6302,190.13,190.04,1.4917]
[1736489523134,9.59615984,190.14,190.04,1.4917]
[1736489523325,2.6304,190.11,190.06,2.6311]
[1736489523633,9.59615984,190.14,190.04,1.4917]
[1736489525128,2.6303,190.12,190.07,2.6309]
[1736489527233,2.6305,190.11,190.05,2.6312]
[1736489527829,2.6305,190.11,190.06,2.631]
[1736489530736,2.6305,190.1,190.04,2.6312]
[1736489531436,9.43625281,190.1,190.04,2.6312]
[1736489531635,9.43625281,190.1,190.05,9.43695281]
[1736489534837,9.43625281,190.1,190.05,6.80575281]
[1736489535038,9.43625281,190.1,190.06,2.6311]
[1736489535540,9.43625281,190.1,190.05,9.43695281]
[1736489536132,6.80575281,190.1,190.03,6.80575281]
[1736489536328,2.6307,190.09,190.04,2.6314]
[1736489537837,2.6307,190.09,190.05,2.6312]
[1736489539539,6.80575281,190.06,190.0,6.80575281]
[1736489539737,6.80575281,190.04,189.98,6.80575281]
[1736489540635,6.80575281,190.04,189.94,6.2456]
[1736489540935,6.80575281,190.04,189.98,6.80575281]
[1736489541136,6.80575281,190.04,190.0,2.6318]
[1736489541640,6.80575281,190.02,189.98,2.6321]
[1736489541830,6.80575281,190.02,189.95,6.80575281]
[1736489542030,6.80575281,190.02,189.97,6.80575281]
[1736489542236,2.6311,190.06,189.99,6.80575281]
[1736489542431,6.80575281,190.05,189.99,6.80575281]
[1736489543339,6.80575281,190.05,190.01,2.6317]
[1736489543938,6.80575281,190.05,189.99,6.80575281]
[1736489544140,6.80575281,190.03,190.0,2.6319]
[1736489544338,6.80575281,190.03,189.97,6.80575281]
[1736489544834,6.80575281,190.03,189.99,2.6319]
[1736489547142,3.0253,190.09,190.0,6.80575281]
[1736489547337,2.6309,190.08,190.03,2.6315]
[1736489547537,1.5829,190.13,190.04,6.80575281]
[1736489547538,6.80575281,190.12,190.04,6.80575281]
[1736489547743,9.43615281,190.12,190.07,2.6309]
[1736489547943,9.43615281,190.12,190.06,6.80575281]
[1736489549146,9.43615281,190.12,190.08,2.6308]
[1736489549346,2.6304,190.12,190.08,2.6308]
[1736489550344,2.6304,190.12,190.07,2.6309]
[1736489551447,1.5829,190.13,190.07,2.6309]
[1736489551642,2.6304,190.11,190.05,2.6311]
[1736489551943,2.6304,190.11,190.03,10.63138672]
[1736489552644,2.6304,190.11,190.06,2.631]
[1736489552946,1.5829,190.13,190.03,10.63138672]
[1736489553540,2.6307,190.09,190.04,2.6312]
[1736489554843,2.6307,190.09,190.05,2.6312]
[1736489555745,2.631,190.07,190.02,2.6316]
[1736489556550,13.69928672,190.12,190.02,2.6316]
[1736489556749,2.6311,190.06,190.02,2.6316]
[1736489557648,13.69928672,190.12,190.0,10.63138672]
[1736489557855,13.69928672,190.12,190.03,2.6315]
[1736489559049,2.6309,190.08,190.03,2.6315]
[1736489559451,13.69928672,190.12,190.03,2.6315]
[1736489559757,2.6311,190.06,190.02,2.6316]
[1736489560354,2.6312,190.05,190.01,2.6318]
[1736489565861,2.6312,190.05,190.0,2.6319]
[1736489567358,10.63138672,190.09,190.0,2.6319]
[1736489567558,10.63138672,190.06,189.94,12.19698672]
[1736489568063,2.6315,190.04,189.94,12.19698672]
[1736489568767,2.6315,190.04,190.0,2.6319]
[1736489569466,9.43996585,190.06,190.0,2.6319]
[1736489569666,6.80876585,190.06,190.0,2.6319]
[1736489570269,2.6313,190.05,190.0,2.6319]
[1736489571468,2.6317,190.02,189.97,9.44106585]
[1736489571670,9.44046585,190.02,189.97,9.44106585]
[1736489573172,2.6319,190.01,189.96,2.6325]
[1736489573366,6.80876585,190.02,189.96,2.6325]
[1736489573867,9.44076585,190.0,189.95,2.6326]
[1736489574270,6.80876585,190.0,189.93,6.80876585]
[1736489574464,6.80876585,189.98,189.93,6.80876585]
[1736489574679,9.44096585,189.98,189.93,9.44156585]
[1736489575172,9.44096585,189.98,189.94,2.6327]
[1736489575968,6.80876585,189.98,189.94,2.6327]
[1736489577371,9.44086585,190.0,189.94,2.6327]
[1736489577870,9.44086585,190.0,189.93,6.80876585]
[1736489578074,9.44086585,190.0,189.95,2.6326]
[1736489578577,6.80876585,190.0,189.95,2.6326]
[1736489578881,2.6321,189.99,189.95,2.6326]
[1736489584379,2.6316,190.03,189.99,2.632]
[1736489584575,4.6106,190.09,189.99,6.80876585]
[1736489584779,6.80876585,190.07,190.01,6.80876585]
[1736489585075,2.6308,190.08,190.01,6.80876585]
[1736489585274,11.41936585,190.09,190.01,6.80876585]
[1736489585681,2.6309,190.08,190.01,6.80876585]
[1736489586273,11.41936585,190.09,190.02,2.6316]
[1736489586477,2.631,190.07,190.02,9.44036585]
[1736489586780,2.631,190.07,190.02,6.80876585]
[1736489586981,6.80876585,190.07,190.01,2.6318]
[1736489587177,6.80876585,190.05,189.98,6.80876585]
[1736489587478,6.80876585,190.03,189.96,6.80876585]
[1736489587678,6.80876585,190.01,189.93,29.06665681]
[1736489587878,6.80876585,189.99,189.93,35.87542266]
[1736489588078,6.80876585,189.99,189.93,38.50822266]
[1736489588278,6.80876585,189.97,189.93,29.06665681]
[1736489588578,6.80876585,189.95,189.89,2.6333]
[1736489588876,6.80876585,189.95,189.89,9.44206585]
[1736489589083,2.6328,189.94,189.89,6.80876585]
[1736489589285,2.6328,189.94,189.88,92.65544205]
[1736489589481,6.80876585,189.93,189.88,63.58878524]
[1736489589690,6.80876585,189.93,189.85,5.28739447]
[1736489589881,6.80876585,189.93,189.86,6.80876585]
[1736489590284,9.44176585,189.93,189.86,9.44246585]
[1736489591186,6.80876585,189.93,189.86,9.44246585]
[1736489591383,6.80876585,189.93,189.85,5.28739447]
[1736489591384,2.6328,189.94,189.87,2.6337]
[1736489591585,9.58807422,189.96,189.85,5.28739447]
[1736489592287,2.6326,189.95,189.88,2.6335]
[1736489592587,2.6326,189.95,189.85,5.28739447]
[1736489592983,2.6326,189.95,189.88,2.6336]
[1736489593183,2.6326,189.95,189.85,5.28739447]
[1736489593988,9.58807422,189.96,189.89,2.6333]
[1736489595091,7.3838,189.98,189.92,2.633]
[1736489595280,9.58807422,190.02,189.9,9.58807422]
[1736489595588,9.58807422,190.05,189.93,9.58807422]
[1736489596396,2.6313,190.05,190.0,2.6318]
[1736489597197,2.6313,190.05,189.96,9.58807422]
[1736489597398,2.6313,190.05,189.98,2.6321]
[1736489597797,2.6315,190.04,189.98,2.6321]
[1736489597993,9.58807422,190.05,189.93,9.58807422]
[1736489598598,2.6315,190.04,189.98,2.6322]
[1736489600695,2.6315,190.03,189.98,2.6322]
[1736489601903,12.70067422,190.08,189.93,9.58807422]
[1736489602101,2.6314,190.04,189.93,9.58807422]
[1736489603305,2.6314,190.04,189.97,2.6322]
[1736489603796,2.6314,190.04,189.98,2.6322]
[1736489605306,9.58807422,190.02,189.91,3.1311]
[1736489606704,2.6322,189.99,189.91,1.6085]
[1736489608110,2.6322,189.99,189.93,2.6328]
[1736489609811,2.6322,189.99,189.94,2.6327]
[1736489611908,1.5372,190.01,189.88,11.22607422]
[1736489612104,9.58807422,189.99,189.88,11.22607422]
[1736489612507,2.6324,189.97,189.92,2.633]
[1736489612713,4.6029,190.01,189.88,11.22607422]
[1736489612918,4.6029,190.01,189.91,9.58807422]
[1736489613111,7.2348,190.01,189.95,2.6326]
[1736489613309,13.36602982,190.01,189.95,2.6326]
[1736489613914,6.13122982,189.99,189.95,2.6326]
[1736489614115,6.13122982,189.99,189.92,8.76412982]
[1736489614716,6.13122982,189.97,189.92,8.76412982]
[1736489615615,6.13122982,189.95,189.86,3.1428]
[1736489615819,6.13122982,189.95,189.88,6.13122982]
[1736489617112,8.76382982,189.95,189.9,2.6333]
[1736489617416,2.6326,189.95,189.9,2.6333]
[1736489618620,9.58647999,189.97,189.86,1.6046]
[1736489618820,2.633,189.92,189.85,68.88115125]
[1736489619313,2.633,189.92,189.87,2.6337]
[1736489619616,2.6332,189.91,189.85,68.88115125]
[1736489619819,2.6332,189.91,189.82,11.11377999]
[1736489620613,14.27097999,189.94,189.82,9.58647999]
[1736489620814,2.6333,189.9,189.82,9.58647999]
[1736489621221,2.6332,189.91,189.86,2.6338]
[1736489623424,2.6333,189.9,189.85,2.634]
[1736489623619,14.27097999,189.94,189.82,9.58647999]
[1736489624626,9.58647999,189.91,189.8,3.0728]
[1736489624917,9.58647999,189.91,189.8,1.5331]
[1736489626121,2.6337,189.87,189.8,1.5331]
[1736489626322,9.58647999,189.91,189.8,1.5331]
[1736489627120,2.6336,189.88,189.83,2.6343]
[1736489627925,2.6337,189.87,189.82,2.6344]
[1736489631228,9.58647999,189.91,189.79,9.58647999]
[1736489631424,9.58647999,189.91,189.81,2.6346]
[1736489631825,2.6338,189.87,189.81,2.6346]
[1736489632530,2.634,189.86,189.81,2.6346]
[1736489633932,14.18647999,189.88,189.81,2.6346]
[1736489634126,14.18647999,189.88,189.79,2.6348]
[1736489634726,4.7381,189.87,189.79,2.6348]
[1736489635127,2.6342,189.84,189.79,2.6348]
[1736489635332,4.7381,189.87,189.78,2.635]
[1736489635333,9.58647999,189.85,189.78,2.635]
[1736489635924,9.58647999,189.85,189.72,73.23014173]
[1736489636134,9.58647999,189.82,189.72,63.64366174]
[1736489637227,2.6348,189.79,189.74,2.6354]
[1736489639333,8.7796704,189.79,189.74,2.6354]
[1736489641230,4.7381,189.87,189.75,6.1448704]
[1736489641533,4.7381,189.87,189.72,63.64366174]
[1736489641534,6.1448704,189.85,189.79,6.1448704]
[1736489643133,8.7789704,189.85,189.81,2.6345]
[1736489643329,2.6341,189.85,189.81,2.6345]
[1736489645133,4.7381,189.87,189.8,2.6347]
[1736489645434,2.6342,189.84,189.8,2.6347]
[1736489646835,2.634,189.85,189.8,2.6347]
[1736489649633,2.6339,189.86,189.76,9.59569439]
[1736489649839,1.545,189.87,189.77,1.6487]
[1736489650235,12.22929439,189.88,189.83,2.6341]
[1736489650440,4.6,189.93,189.79,9.59569439]
[1736489650635,4.6,189.93,189.8,1.6367]
[1736489650840,2.6333,189.91,189.86,2.6338]
[1736489652037,2.6333,189.91,189.82,9.59569439]
[1736489652341,2.6333,189.91,189.87,2.6337]
[1736489653443,31.6,190.11,189.84,4.6]
[1736489653635,9.59569439,190.03,189.91,9.59569439]
[1736489653944,9.59569439,190.03,189.91,14.19569439]
[1736489655337,2.6317,190.02,189.91,14.19569439]
[1736489656641,9.59569439,190.03,189.91,14.19569439]
[1736489656940,2.6318,190.01,189.95,2.6325]
[1736489657246,4.5898,190.04,189.94,9.59569439]
[1736489657539,9.59569439,190.06,189.94,9.59569439]
[1736489657739,9.59569439,190.09,189.97,9.59569439]
[1736489659346,2.6311,190.06,190.0,2.6318]
[1736489659543,9.59569439,190.06,189.95,1.5799]
[1736489659843,2.6317,190.02,189.97,2.6323]
[1736489660147,2.6315,190.03,189.97,2.6323]
[1736489660843,9.59569439,190.06,189.95,1.5799]
[1736489661041,2.6318,190.02,189.96,2.6325]
[1736489661243,9.59569439,190.06,189.96,2.6325]
[1736489661439,1.496,190.05,189.96,2.6325]
[1736489661742,2.6317,190.02,189.96,2.6325]
[1736489663841,2.6316,190.02,189.95,4.2125]
[1736489665146,2.6316,190.02,189.97,2.6323]
[1736489665544,2.6318,190.01,189.95,4.2124]
[1736489667351,2.6318,190.01,189.96,8.76271057]
[1736489677353,6.13021057,190.02,189.92,1.5566]
[1736489677651,2.6322,189.99,189.94,2.6327]
[1736489678057,2.6322,189.99,189.95,2.6326]
[1736489678652,6.13021057,190.0,189.95,2.6326]
[1736489678859,8.76221057,190.0,189.95,2.6326]
[1736489681460,2.6321,189.99,189.95,2.6326]
[1736489682454,2.6325,189.96,189.91,2.6331]
[1736489682660,6.13021057,189.95,189.83,1.5922]
[1736489682856,4.6,189.99,189.88,6.13021057]
[1736489683060,7.2321,189.99,189.94,2.6326]
[1736489683858,7.2321,189.99,189.95,2.6326]
[1736489684058,3.1106,190.04,189.96,6.13021057]
[1736489684262,9.24081057,190.04,189.96,6.13021057]
[1736489684461,9.24081057,190.04,189.97,2.6323]
[1736489685163,6.13021057,190.02,189.97,2.6323]
[1736489685863,8.76191057,190.02,189.98,2.6322]
[1736489691577,1.496,190.05,189.98,6.13021057]
[1736489691771,6.13021057,190.07,190.01,6.13021057]
[1736489692074,6.13021057,190.07,190.02,2.6315]
[1736489692276,6.13021057,190.07,190.01,6.13021057]
[1736489693577,2.6311,190.06,190.02,2.6316]
[1736489694167,6.13021057,190.07,189.94,7.29838927]
[1736489694479,6.13021057,190.05,189.97,6.13021057]
[1736489695074,2.6315,190.03,189.99,2.632]
[1736489695778,6.13021057,190.05,190.0,2.6319]
[1736489696376,3.1839,190.14,190.03,6.13021057]
[1736489696578,8.76081057,190.1,190.03,6.13021057]
[1736489697477,8.76081057,190.1,190.05,2.6311]
[1736489697874,2.6307,190.09,190.05,2.6311]
[1736489699377,2.6308,190.08,190.04,2.6314]
[1736489699777,2.631,190.07,190.02,6.13021057]
[1736489699984,2.631,190.07,190.03,2.6315]
[1736489700385,8.76131057,190.06,190.02,2.6316]
[1736489702484,8.76111057,190.08,190.03,2.6315]
[1736489702889,2.631,190.07,190.03,2.6315]
[1736489703481,6.13021057,190.1,190.03,6.13021057]
[1736489703680,1.6132,190.13,190.05,6.13021057]
[1736489703888,1.6226,190.14,190.07,6.13021057]
[1736489704086,1.6226,190.14,190.09,6.13021057]
[1736489704286,8.76011057,190.15,190.09,6.13021057]
[1736489705182,8.76011057,190.15,190.1,2.6305]
[1736489705586,1.6466,190.19,190.07,6.13021057]
[1736489705587,6.13021057,190.13,190.07,6.13021057]
[1736489705793,6.13021057,190.13,190.07,8.76111057]
[1736489705990,6.13021057,190.15,190.07,6.13021057]
[1736489706991,8.76031057,190.13,190.09,2.6306]
[1736489707188,8.76031057,190.13,190.05,1.5182]
[1736489707189,6.13021057,190.13,190.05,7.64841057]
[1736489707993,2.6304,190.12,190.07,8.76101057]
[1736489708192,6.13021057,190.13,190.07,6.13021057]
[1736489708595,1.6466,190.19,190.04,4.6]
[1736489708798,6.13021057,190.09,190.02,6.13021057]
[1736489709201,6.13021057,190.09,190.04,6.13021057]
[1736489709402,6.13021057,190.09,190.05,2.6312]
[1736489709904,6.13021057,190.11,190.05,2.6312]
[1736489710698,1.6466,190.19,190.06,6.13021057]
[1736489710997,1.6466,190.19,190.08,6.13021057]
[1736489710998,6.13021057,190.16,190.08,6.13021057]
[1736489711209,6.13021057,190.16,190.1,6.13021057]
[1736489711501,2.63,190.15,190.1,2.6305]
[1736489712700,2.63,190.15,190.08,6.13021057]
[1736489712701,6.13021057,190.16,190.08,6.13021057]
[1736489712905,6.13021057,190.16,190.12,2.6302]
[1736489713803,8.76001057,190.16,190.11,2.6304]
[1736489714610,2.6299,190.15,190.11,2.6304]
[1736489714796,2.6299,190.15,190.1,2.6305]
[1736489716703,2.6299,190.15,190.11,2.6304]
[1736489716904,2.6296,190.18,190.12,6.13021057]
[1736489717211,6.13021057,190.22,190.15,2.6298]
[1736489718109,2.6293,190.19,190.15,2.6298]
[1736489720302,6.13021057,190.22,190.17,2.6296]
[1736489721206,1.6286,190.24,190.18,6.13021057]
[1736489721603,2.6286,190.25,190.21,2.629]
[1736489722098,2.6286,190.25,190.13,4.7321]
[1736489722406,2.6286,190.24,190.18,6.13021057]
[1736489723407,2.6286,190.24,190.19,2.6293]
[1736489725705,6.13021057,190.2,190.13,1.5167]
[1736489726012,3.1372,190.29,190.18,6.13021057]
[1736489726013,6.13021057,190.25,190.18,6.13021057]
[1736489726301,2.6287,190.24,190.18,8.75951057]
[1736489727104,6.13021057,190.25,190.18,8.75951057]
[1736489727407,2.6287,190.23,190.18,8.75951057]
[1736489727608,6.13021057,190.25,190.18,6.13021057]
[1736489727811,6.13021057,190.23,190.16,6.13021057]
[1736489729013,2.6292,190.21,190.16,8.75991057]
[1736489729204,6.13021057,190.21,190.14,6.13021057]
[1736489729406,6.13021057,190.19,190.12,6.13021057]
[1736489731214,2.6297,190.17,190.12,8.76051057]
[1736489735916,8.76011057,190.15,190.1,8.76061057]
[1736489737019,2.6301,190.13,190.08,8.76091057]
[1736489741712,2.6298,190.16,190.1,6.13021057]
[1736489741919,6.13021057,190.18,190.12,6.13021057]
[1736489742210,6.13021057,190.18,190.02,6.1545]
[1736489742211,4.7223,190.22,190.16,8.75991057]
[1736489742409,2.6291,190.21,190.16,6.13021057]
[1736489743016,2.6291,190.21,190.16,8.75991057]
[1736489743612,2.6292,190.2,190.16,6.13021057]
[1736489745319,2.629,190.21,190.16,8.75991057]
[1736489747625,1.5864,190.22,190.16,8.75991057]
[1736489747822,2.6292,190.2,190.16,8.75991057]
[1736489749116,7.71661057,190.22,190.1,4.7159]
[1736489749323,6.13021057,190.18,190.12,6.13021057]
[1736489749522,6.13021057,190.18,190.1,1.5587]
[1736489749722,6.13021057,190.18,190.1,6.13021057]
[1736489750519,2.6299,190.15,190.1,6.13021057]
[1736489750720,2.6299,190.15,190.1,8.76061057]
[1736489752729,6.13021057,190.16,190.1,6.13021057]
[1736489752927,6.13021057,190.16,190.06,1.5676]
[1736489752928,2.6301,190.13,190.09,2.6306]
[1736489754024,2.6303,190.12,190.08,8.76101057]
[1736489754229,6.13021057,190.14,190.06,6.13021057]
[1736489754625,2.6303,190.12,190.07,2.6309]
[1736489759232,2.6303,190.12,190.08,2.6308]
[1736489759836,8.76051057,190.12,190.08,2.6308]
[1736489760330,6.13021057,190.12,190.05,63.53399472]
[1736489760529,6.13021057,190.1,190.05,63.53399472]
[1736489761034,6.13021057,190.1,190.03,6.13021057]
[1736489761035,2.6308,190.09,190.04,2.6313]
[1736489761327,6.13021057,190.08,190.04,2.6313]
[1736489761532,8.76111057,190.08,190.04,2.6313]
[1736489761733,4.6,190.12,190.04,2.6313]
[1736489761935,6.13021057,190.1,190.06,2.631]
[1736489762140,2.6304,190.11,190.05,6.13021057]
[1736489762339,4.6,190.12,190.07,6.13021057]
[1736489762534,10.73021057,190.12,190.05,6.13021057]
[1736489763330,2.6305,190.11,190.06,2.631]
[1736489763535,3.1693,190.21,190.09,6.13021057]
[1736489763736,6.13021057,190.16,190.09,6.13021057]
[1736489763929,6.13021057,190.16,190.11,6.13021057]
[1736489764134,6.13021057,190.16,190.09,6.13021057]
[1736489764835,8.76021057,190.14,190.09,8.76081057]
[1736489765134,8.76021057,190.14,190.09,2.6306]
[1736489765335,2.63,190.14,190.09,2.6306]
[1736489769836,10.62990857,190.17,190.05,10.62990857]
[1736489770040,4.6,190.2,190.04,1.5921]
[1736489770041,10.62990857,190.14,190.04,1.5921]
[1736489770243,10.62990857,190.14,190.02,10.62990857]
[1736489770638,2.6304,190.11,190.06,2.6311]
[1736489771737,10.62990857,190.17,190.05,10.62990857]
[1736489772142,15.22990857,190.2,190.08,10.62990857]
[1736489772342,2.6297,190.16,190.12,2.6302]
[1736489772846,2.6297,190.16,190.11,2.6304]
[1736489773047,2.6301,190.14,190.08,10.62990857]
[1736489774241,2.6301,190.14,190.1,2.6305]
[1736489774845,2.6301,190.13,190.08,2.6308]
[1736489775142,10.62990857,190.17,190.0,72.33537382]
[1736489775143,10.62990857,190.14,190.03,10.62990857]
[1736489775344,10.62990857,190.14,190.0,82.96528239]
[1736489775548,10.62990857,190.14,190.03,2.6314]
[1736489775549,9.24,190.13,190.03,2.6314]
[1736489775939,2.6308,190.09,190.03,2.6314]
[1736489776448,2.6308,190.09,190.0,75.66689312]
[1736489776847,9.24,190.13,190.0,75.66689312]
[1736489777047,2.6306,190.1,190.05,2.6312]
[1736489777449,7.2701,190.13,190.03,10.62990857]
[1736489778953,7.2701,190.13,190.08,2.6308]
[1736489779651,2.6303,190.12,190.08,2.6308]
[1736489780354,4.64,190.13,190.05,2.6312]
[1736489780855,2.6307,190.1,190.05,2.6312]
[1736489781755,4.64,190.13,190.03,2.6314]
[1736489781954,10.62990857,190.11,190.03,2.6314]
[1736489782363,2.6309,190.08,190.0,75.66689312]
[1736489782654,2.6309,190.08,190.04,2.6313]
[1736489783448,10.62990857,190.11,190.04,2.6313]
[1736489783654,2.6307,190.09,190.04,2.6313]
[1736489783953,10.62990857,190.11,190.02,2.6315]
[1736489784149,2.631,190.07,190.02,2.6315]
[1736489784355,2.631,190.07,190.0,75.66689312]
[1736489784855,2.631,190.07,190.02,2.6316]
[1736489785250,2.6307,190.09,190.0,75.66689312]
[1736489785646,10.62990857,190.12,190.0,75.66689312]
[1736489785852,10.62990857,190.09,189.98,1.6454]
[1736489786355,2.6314,190.05,190.0,2.6319]
[1736489786546,10.62990857,190.09,189.98,12.27530857]
[1736489786746,10.62990857,190.12,189.98,12.27530857]
[1736489787158,4.64,190.13,190.01,10.62990857]
[1736489787353,11.44412126,190.13,190.06,6.80412126]
[1736489788155,2.6303,190.12,190.07,2.6309]
[1736489788353,1.4969,190.13,190.08,6.80412126]
[1736489788547,2.6297,190.16,190.1,9.43452126]
[1736489788750,6.80412126,190.17,190.1,6.80412126]
[1736489789256,2.6299,190.15,190.1,2.6304]
[1736489789659,2.6299,190.15,190.07,10.62690304]
[1736489790857,2.63,190.14,190.09,2.6307]
[1736489791366,2.6305,190.11,190.06,2.6311]
[1736489791860,10.62690304,190.16,190.04,10.62690304]
[1736489792160,10.62690304,190.16,190.04,13.25810304]
[1736489792861,2.6306,190.1,190.04,13.25810304]
[1736489793362,2.6304,190.12,190.04,10.62690304]
[1736489793865,10.62690304,190.16,190.06,2.6311]
[1736489794066,2.6304,190.11,190.06,2.6311]
[1736489794362,10.62690304,190.16,190.06,2.6311]
[1736489794866,2.6303,190.12,190.06,2.6311]
[1736489795057,2.6303,190.12,190.07,2.6309]
[1736489795262,10.62690304,190.16,190.04,10.62690304]
[1736489796163,2.6301,190.13,190.04,10.62690304]